[Event "*** Titled Tuesday Blitz"]
[Site "Chess.com"]
[Date "2019.06.04"]
[Round "7"]
[White "ehrenfeld"]
[Black "DivyaDeshmukh23"]
[Result "1-0"]
[WhiteElo "2501"]
[BlackElo "2378"]
[TimeControl "180+2"]
[EndTime "14:35:50 PDT"]
[Termination "ehrenfeld won by resignation"]

1. e4 {[%clk 0:03:01.9]} 1... d5 {[%clk 0:03:00.6]} 2. exd5 {[%clk 0:03:02.3]}
2... Nf6 {[%clk 0:03:01.9]} 3. d4 {[%clk 0:03:00.5]} 3... Bg4 {[%clk 0:03:02.2]}
4. Be2 {[%clk 0:03:00.5]} 4... Bxe2 {[%clk 0:03:03]} 5. Qxe2 {[%clk 0:03:01.7]}
5... Qxd5 {[%clk 0:03:04.9]} 6. Nf3 {[%clk 0:03:02.7]} 6... e6 {[%clk
0:03:05.4]} 7. O-O {[%clk 0:03:03.3]} 7... Nc6 {[%clk 0:03:05.7]} 8. c3 {[%clk
0:03:03.8]} 8... O-O-O {[%clk 0:03:06.4]} 9. Nbd2 {[%clk 0:03:03.1]} 9... Bd6
{[%clk 0:03:04.6]} 10. Nc4 {[%clk 0:03:03.3]} 10... Kb8 {[%clk 0:02:54.5]} 11.
Re1 {[%clk 0:03:02.7]} 11... Be7 {[%clk 0:02:54.4]} 12. Nce5 {[%clk 0:02:59.8]}
12... Nxe5 {[%clk 0:02:46.1]} 13. Nxe5 {[%clk 0:03:00]} 13... Rhf8 {[%clk
0:02:47.2]} 14. Bf4 {[%clk 0:02:58.7]} 14... h6 {[%clk 0:02:45.1]} 15. a4 {[%clk
0:02:49.3]} 15... g5 {[%clk 0:02:45.6]} 16. Bg3 {[%clk 0:02:39.9]} 16... h5
{[%clk 0:02:44]} 17. h3 {[%clk 0:02:39.7]} 17... h4 {[%clk 0:02:43.6]} 18. Bh2
{[%clk 0:02:39.5]} 18... Bd6 {[%clk 0:02:24.5]} 19. Rad1 {[%clk 0:02:16.5]}
19... Qb3 {[%clk 0:02:09.5]} 20. a5 {[%clk 0:01:59.4]} 20... Nd5 {[%clk
0:01:53.7]} 21. a6 {[%clk 0:01:55.5]} 21... Nf4 {[%clk 0:01:48.9]} 22. Bxf4
{[%clk 0:01:41.5]} 22... gxf4 {[%clk 0:01:50.8]} 23. axb7 {[%clk 0:01:41.9]}
23... Qxb7 {[%clk 0:01:50.1]} 24. Qe4 {[%clk 0:01:35.8]} 24... Bxe5 {[%clk
0:01:45.1]} 25. Qxb7+ {[%clk 0:01:33.6]} 25... Kxb7 {[%clk 0:01:47]} 26. Rxe5
{[%clk 0:01:34.7]} 26... Rg8 {[%clk 0:01:48.1]} 27. f3 {[%clk 0:01:29.8]} 27...
Rg3 {[%clk 0:01:46.1]} 28. Rd2 {[%clk 0:01:27.1]} 28... Rdg8 {[%clk 0:01:46.6]}
29. Kf1 {[%clk 0:01:27.4]} 29... R3g5 {[%clk 0:01:45]} 30. Rde2 {[%clk
0:01:24.7]} 30... Kc6 {[%clk 0:01:38.4]} 31. c4 {[%clk 0:01:02.9]} 31... Rxe5
{[%clk 0:01:30.6]} 32. Rxe5 {[%clk 0:01:03.1]} 32... Rb8 {[%clk 0:01:32.1]} 33.
Re4 {[%clk 0:00:57.1]} 33... Rxb2 {[%clk 0:01:31.1]} 34. Rxf4 {[%clk 0:00:58.1]}
34... f5 {[%clk 0:01:32.4]} 35. Rxh4 {[%clk 0:00:57.3]} 35... a5 {[%clk
0:01:32.3]} 36. Rh8 {[%clk 0:00:52.9]} 36... a4 {[%clk 0:01:33]} 37. Ra8 {[%clk
0:00:53.4]} 37... Rb4 {[%clk 0:01:34.4]} 38. Ra6+ {[%clk 0:00:48.8]} 38... Kd7
{[%clk 0:01:17.1]} 39. d5 {[%clk 0:00:45.5]} 39... Rxc4 {[%clk 0:01:17.9]} 40.
dxe6+ {[%clk 0:00:46.1]} 40... Ke7 {[%clk 0:01:19.2]} 41. g4 {[%clk 0:00:43.9]}
41... fxg4 {[%clk 0:01:19.7]} 42. hxg4 {[%clk 0:00:43.7]} 42... Rc3 {[%clk
0:01:17.1]} 43. Ke2 {[%clk 0:00:44.1]} 43... a3 {[%clk 0:01:18]} 44. f4 {[%clk
0:00:43.9]} 44... Rg3 {[%clk 0:01:16.3]} 45. g5 {[%clk 0:00:40.4]} 45... a2
{[%clk 0:01:17.2]} 46. Kf2 {[%clk 0:00:36.5]} 46... Rh3 {[%clk 0:00:55.6]} 47.
Kg2 {[%clk 0:00:37]} 47... Rh4 {[%clk 0:00:57.1]} 48. Kg3 {[%clk 0:00:36]} 48...
Rh1 {[%clk 0:00:57.8]} 49. Rxa2 {[%clk 0:00:35.4]} 49... Kxe6 {[%clk 0:00:59.3]}
50. Ra6+ {[%clk 0:00:31.2]} 50... Ke7 {[%clk 0:01:00.4]} 51. f5 {[%clk
0:00:30.9]} 51... Rg1+ {[%clk 0:01:00.6]} 52. Kf4 {[%clk 0:00:30.4]} 52... Rf1+
{[%clk 0:01:00.8]} 53. Kg4 {[%clk 0:00:31.5]} 53... c5 {[%clk 0:01:00.2]} 54.
Rc6 {[%clk 0:00:30.5]} 54... Rd1 {[%clk 0:01:01]} 55. Rxc5 {[%clk 0:00:29.8]}
55... Rd4+ {[%clk 0:01:02.4]} 56. Kh5 {[%clk 0:00:30.6]} 56... Rd1 {[%clk
0:01:04.3]} 57. Kg6 {[%clk 0:00:31.3]} 1-0

[Event "*** Titled Tuesday Blitz"]
[Site "Chess.com"]
[Date "2019.06.04"]
[Round "7"]
[White "Jbd735"]
[Black "dopolian"]
[Result "0-1"]
[WhiteElo "2421"]
[BlackElo "2274"]
[TimeControl "180+2"]
[EndTime "14:35:58 PDT"]
[Termination "dopolian won on time"]

1. e4 {[%clk 0:03:01.9]} 1... e5 {[%clk 0:03:00.4]} 2. Nf3 {[%clk 0:03:02]} 2...
Nc6 {[%clk 0:03:01.3]} 3. Bb5 {[%clk 0:03:02.7]} 3... a6 {[%clk 0:03:02.2]} 4.
Ba4 {[%clk 0:03:03.6]} 4... Nf6 {[%clk 0:03:03.1]} 5. O-O {[%clk 0:03:04.6]}
5... Nxe4 {[%clk 0:03:04.6]} 6. d4 {[%clk 0:02:56]} 6... b5 {[%clk 0:03:02.7]}
7. Bb3 {[%clk 0:02:56.1]} 7... d5 {[%clk 0:03:04.2]} 8. dxe5 {[%clk 0:02:53.9]}
8... Be6 {[%clk 0:03:05.5]} 9. c3 {[%clk 0:02:54.6]} 9... Bc5 {[%clk 0:03:06.5]}
10. Nbd2 {[%clk 0:02:42.4]} 10... O-O {[%clk 0:03:06.9]} 11. Bc2 {[%clk
0:02:32.3]} 11... Nxf2 {[%clk 0:03:07.1]} 12. Rxf2 {[%clk 0:02:34.2]} 12... f6
{[%clk 0:03:08.2]} 13. exf6 {[%clk 0:02:26.7]} 13... Bxf2+ {[%clk 0:03:09]} 14.
Kxf2 {[%clk 0:02:27]} 14... Qxf6 {[%clk 0:03:10.3]} 15. Kg1 {[%clk 0:02:01.9]}
15... Ne5 {[%clk 0:03:05.8]} 16. Nxe5 {[%clk 0:01:56.7]} 16... Qxe5 {[%clk
0:03:05.1]} 17. Nf3 {[%clk 0:01:55.3]} 17... Qh5 {[%clk 0:02:58.7]} 18. Ng5
{[%clk 0:01:28]} 18... Qxd1+ {[%clk 0:02:57.3]} 19. Bxd1 {[%clk 0:01:29.9]}
19... Bf5 {[%clk 0:02:52.3]} 20. Be3 {[%clk 0:01:23.7]} 20... Rfe8 {[%clk
0:02:49]} 21. Bf2 {[%clk 0:01:22.7]} 21... c6 {[%clk 0:02:18.4]} 22. Nf3 {[%clk
0:00:55.1]} 22... Be4 {[%clk 0:02:00]} 23. Nd2 {[%clk 0:00:53.5]} 23... Bd3
{[%clk 0:01:52.9]} 24. Bg4 {[%clk 0:00:50.9]} 24... a5 {[%clk 0:01:43.4]} 25.
Bd7 {[%clk 0:00:38.7]} 25... Re2 {[%clk 0:01:42.5]} 26. Bxc6 {[%clk 0:00:29.1]}
26... Rd8 {[%clk 0:01:39.1]} 27. Be1 {[%clk 0:00:19.4]} 27... Rd6 {[%clk
0:01:31.5]} 28. Bb7 {[%clk 0:00:16.5]} 28... a4 {[%clk 0:01:07.6]} 29. Bc8
{[%clk 0:00:15.5]} 29... Rg6 {[%clk 0:01:01.2]} 30. Bh3 {[%clk 0:00:14.4]} 30...
Rf6 {[%clk 0:00:59.2]} 31. Nf3 {[%clk 0:00:10.4]} 31... Rxb2 {[%clk 0:00:52.2]}
32. c4 {[%clk 0:00:11.5]} 32... dxc4 {[%clk 0:00:23.2]} 33. Bc3 {[%clk 0:00:12]}
33... a3 {[%clk 0:00:20.2]} 34. Bxf6 {[%clk 0:00:11]} 34... gxf6 {[%clk
0:00:22.1]} 35. Nd4 {[%clk 0:00:09]} 35... b4 {[%clk 0:00:19.3]} 36. Be6+ {[%clk
0:00:07.4]} 36... Kf8 {[%clk 0:00:20.2]} 37. h4 {[%clk 0:00:05.6]} 37... Ke7
{[%clk 0:00:14.3]} 38. Re1 {[%clk 0:00:05.8]} 38... Kd6 {[%clk 0:00:13.7]} 39.
Bg8 {[%clk 0:00:04.7]} 39... Rxa2 {[%clk 0:00:09.8]} 40. h5 {[%clk 0:00:04.6]}
40... Rb2 {[%clk 0:00:07.9]} 41. h6 {[%clk 0:00:05.1]} 41... a2 {[%clk
0:00:05.8]} 42. Kh2 {[%clk 0:00:05.2]} 42... Rb1 {[%clk 0:00:04.5]} 43. Re6+
{[%clk 0:00:06.4]} 43... Kc5 {[%clk 0:00:05.8]} 44. Nf3 {[%clk 0:00:02.1]} 44...
a1=Q {[%clk 0:00:05.4]} 0-1

[Event "*** Titled Tuesday Blitz"]
[Site "Chess.com"]
[Date "2019.06.04"]
[Round "7"]
[White "marianokar"]
[Black "Thee-Chessboy"]
[Result "0-1"]
[WhiteElo "2416"]
[BlackElo "2439"]
[TimeControl "180+2"]
[EndTime "14:36:04 PDT"]
[Termination "Thee-Chessboy won by checkmate"]

1. e4 {[%clk 0:03:01.9]} 1... c5 {[%clk 0:03:00.5]} 2. Nf3 {[%clk 0:03:02]} 2...
d6 {[%clk 0:03:01.9]} 3. g3 {[%clk 0:03:01.4]} 3... Nf6 {[%clk 0:03:01]} 4. d3
{[%clk 0:03:01.9]} 4... Nc6 {[%clk 0:03:00.8]} 5. Bg2 {[%clk 0:03:03]} 5... g6
{[%clk 0:03:01.3]} 6. O-O {[%clk 0:03:03.5]} 6... Bg7 {[%clk 0:03:02.6]} 7. Re1
{[%clk 0:03:05.1]} 7... O-O {[%clk 0:03:03.7]} 8. c3 {[%clk 0:03:06.7]} 8... Rb8
{[%clk 0:03:03.8]} 9. d4 {[%clk 0:03:07.3]} 9... cxd4 {[%clk 0:03:03.5]} 10.
cxd4 {[%clk 0:03:08.4]} 10... Bg4 {[%clk 0:03:04.1]} 11. h3 {[%clk 0:03:02.8]}
11... Bxf3 {[%clk 0:03:04.1]} 12. Bxf3 {[%clk 0:03:04.4]} 12... Nd7 {[%clk
0:02:54.6]} 13. d5 {[%clk 0:02:58.8]} 13... Nd4 {[%clk 0:02:47.2]} 14. Bg2
{[%clk 0:02:55.6]} 14... e5 {[%clk 0:02:34.1]} 15. dxe6 {[%clk 0:02:50]} 15...
fxe6 {[%clk 0:02:34.2]} 16. Be3 {[%clk 0:02:41.1]} 16... Qf6 {[%clk 0:02:20.6]}
17. Nc3 {[%clk 0:02:37.4]} 17... Nb6 {[%clk 0:02:05.9]} 18. Qd3 {[%clk
0:02:22.4]} 18... e5 {[%clk 0:01:41.7]} 19. Rac1 {[%clk 0:02:10]} 19... Rbd8
{[%clk 0:01:17.8]} 20. f4 {[%clk 0:02:00.4]} 20... exf4 {[%clk 0:01:11.6]} 21.
gxf4 {[%clk 0:02:01]} 21... Ne6 {[%clk 0:01:13]} 22. Rf1 {[%clk 0:01:48.1]}
22... Bh6 {[%clk 0:01:06]} 23. Nd5 {[%clk 0:01:40.2]} 23... Nxd5 {[%clk
0:01:02.9]} 24. Qxd5 {[%clk 0:01:41.2]} 24... Kh8 {[%clk 0:01:00.1]} 25. Qxb7
{[%clk 0:00:33.2]} 25... Rf7 {[%clk 0:00:54.5]} 26. Qb4 {[%clk 0:00:30.3]} 26...
Bxf4 {[%clk 0:00:45.9]} 27. Kh1 {[%clk 0:00:23.6]} 27... Qe5 {[%clk 0:00:35.7]}
28. Rxf4 {[%clk 0:00:20.3]} 28... Rxf4 {[%clk 0:00:32.4]} 29. Bxf4 {[%clk
0:00:20.9]} 29... Nxf4 {[%clk 0:00:28.3]} 30. Qc3 {[%clk 0:00:22.1]} 30... Rb8
{[%clk 0:00:20.8]} 31. b3 {[%clk 0:00:21.9]} 31... Rd8 {[%clk 0:00:18.3]} 32.
Qxe5+ {[%clk 0:00:18.9]} 32... dxe5 {[%clk 0:00:19.4]} 33. Bf1 {[%clk
0:00:19.2]} 33... Rd2 {[%clk 0:00:20.5]} 34. a4 {[%clk 0:00:19.8]} 34... Rb2
{[%clk 0:00:21.2]} 35. Bc4 {[%clk 0:00:20]} 35... Kg7 {[%clk 0:00:22.7]} 36. Rd1
{[%clk 0:00:20.8]} 36... Kf6 {[%clk 0:00:24.6]} 37. Rd7 {[%clk 0:00:20.7]} 37...
Kg5 {[%clk 0:00:26.5]} 38. Rxa7 {[%clk 0:00:20]} 38... Kh4 {[%clk 0:00:27.5]}
39. Kg1 {[%clk 0:00:21.6]} 39... Kg3 {[%clk 0:00:29.4]} 40. Bf1 {[%clk
0:00:20.7]} 40... Rb1 {[%clk 0:00:28.5]} 41. Rf7 {[%clk 0:00:15]} 41... Nxh3+
{[%clk 0:00:28.7]} 42. Kh1 {[%clk 0:00:15.4]} 42... Nf2+ {[%clk 0:00:29.7]} 43.
Kg1 {[%clk 0:00:16.4]} 43... Nh3+ {[%clk 0:00:29.5]} 44. Kh1 {[%clk 0:00:17]}
44... Nf4 {[%clk 0:00:31.1]} 45. Kg1 {[%clk 0:00:17.6]} 45... h5 {[%clk
0:00:31.4]} 46. a5 {[%clk 0:00:18]} 46... h4 {[%clk 0:00:32.8]} 47. a6 {[%clk
0:00:16.6]} 47... h3 {[%clk 0:00:33.2]} 48. Rh7 {[%clk 0:00:15.9]} 48... Ne2+
{[%clk 0:00:31.7]} 49. Kh1 {[%clk 0:00:17]} 49... Rxf1# {[%clk 0:00:32.3]} 0-1

[Event "*** Titled Tuesday Blitz"]
[Site "Chess.com"]
[Date "2019.06.04"]
[Round "7"]
[White "LuckIsMySkill"]
[Black "GadimbayliA"]
[Result "1-0"]
[WhiteElo "2681"]
[BlackElo "2836"]
[TimeControl "180+2"]
[EndTime "14:36:10 PDT"]
[Termination "LuckIsMySkill won by resignation"]

1. Nf3 {[%clk 0:02:54.4]} 1... Nf6 {[%clk 0:03:00.1]} 2. c4 {[%clk 0:02:54.7]}
2... b6 {[%clk 0:02:57.6]} 3. g3 {[%clk 0:02:55.3]} 3... Bb7 {[%clk 0:02:58.8]}
4. Bg2 {[%clk 0:02:56.7]} 4... e6 {[%clk 0:03:00.3]} 5. O-O {[%clk 0:02:58]}
5... Be7 {[%clk 0:03:01.3]} 6. b3 {[%clk 0:02:49]} 6... O-O {[%clk 0:03:01.4]}
7. Bb2 {[%clk 0:02:50.1]} 7... d6 {[%clk 0:02:56.6]} 8. d4 {[%clk 0:02:49.2]}
8... Nbd7 {[%clk 0:02:57.7]} 9. Nbd2 {[%clk 0:02:40.7]} 9... Ne4 {[%clk
0:02:51.4]} 10. Rc1 {[%clk 0:02:22.5]} 10... f5 {[%clk 0:02:01.1]} 11. Nxe4
{[%clk 0:02:12.7]} 11... Bxe4 {[%clk 0:02:03]} 12. e3 {[%clk 0:02:05.2]} 12...
Qe8 {[%clk 0:01:45.3]} 13. Ne1 {[%clk 0:01:38.9]} 13... Bxg2 {[%clk 0:01:44.6]}
14. Kxg2 {[%clk 0:01:38.6]} 14... Nf6 {[%clk 0:01:37.8]} 15. Nd3 {[%clk
0:01:34.9]} 15... Rd8 {[%clk 0:01:29.1]} 16. Nf4 {[%clk 0:01:28.5]} 16... Qf7
{[%clk 0:00:26.4]} 17. d5 {[%clk 0:01:29.1]} 17... e5 {[%clk 0:00:27.4]} 18. Ne6
{[%clk 0:01:30]} 18... Rc8 {[%clk 0:00:28.8]} 19. f4 {[%clk 0:01:19.2]} 19...
exf4 {[%clk 0:00:21.5]} 20. exf4 {[%clk 0:01:19.7]} 20... Rfe8 {[%clk
0:00:22.6]} 21. Qd3 {[%clk 0:01:13]} 21... Qg6 {[%clk 0:00:09]} 22. Rce1 {[%clk
0:01:07.4]} 22... Bf8 {[%clk 0:00:10]} 23. Re2 {[%clk 0:00:56.4]} 23... Ne4
{[%clk 0:00:10.1]} 24. Rfe1 {[%clk 0:00:47.8]} 24... h5 {[%clk 0:00:11.1]} 25.
Nd4 {[%clk 0:00:45.4]} 25... h4 {[%clk 0:00:04.7]} 26. Nxf5 {[%clk 0:00:42.6]}
26... Qxf5 {[%clk 0:00:04.7]} 27. Rxe4 {[%clk 0:00:43.8]} 27... Re7 {[%clk
0:00:06.1]} 28. R1e3 {[%clk 0:00:36.7]} 28... Rce8 {[%clk 0:00:04.3]} 29. Rxe7
{[%clk 0:00:35.7]} 29... Qxd3 {[%clk 0:00:05.1]} 30. Rxd3 {[%clk 0:00:31.9]}
30... Rxe7 {[%clk 0:00:07]} 31. Kf2 {[%clk 0:00:32.4]} 31... hxg3+ {[%clk
0:00:07]} 32. hxg3 {[%clk 0:00:33.7]} 32... Kf7 {[%clk 0:00:08.4]} 33. Bc3
{[%clk 0:00:34.9]} 33... g6 {[%clk 0:00:09]} 34. Kf3 {[%clk 0:00:34.4]} 34...
Bh6 {[%clk 0:00:09.1]} 35. Rd1 {[%clk 0:00:35.1]} 35... Bg7 {[%clk 0:00:05.1]}
36. Bxg7 {[%clk 0:00:31.9]} 36... Kxg7 {[%clk 0:00:07]} 37. g4 {[%clk
0:00:33.4]} 37... Kf6 {[%clk 0:00:07.9]} 38. a3 {[%clk 0:00:33.6]} 38... Rh7
{[%clk 0:00:06.5]} 39. Kg2 {[%clk 0:00:32.1]} 39... Re7 {[%clk 0:00:07.4]} 40.
Rd3 {[%clk 0:00:31.1]} 40... Re2+ {[%clk 0:00:08.1]} 41. Kf3 {[%clk 0:00:32]}
41... Re1 {[%clk 0:00:08.8]} 42. Re3 {[%clk 0:00:32.7]} 42... Rf1+ {[%clk
0:00:10]} 43. Kg3 {[%clk 0:00:33.3]} 43... Rg1+ {[%clk 0:00:11.3]} 44. Kh3
{[%clk 0:00:34.7]} 44... Rf1 {[%clk 0:00:10.3]} 45. Re6+ {[%clk 0:00:35.5]}
45... Kf7 {[%clk 0:00:11.6]} 46. Kg3 {[%clk 0:00:36.8]} 46... Rg1+ {[%clk
0:00:13]} 47. Kh4 {[%clk 0:00:38]} 47... Rb1 {[%clk 0:00:08.9]} 48. Kg5 {[%clk
0:00:37.5]} 48... Rxb3 {[%clk 0:00:10]} 49. Rf6+ {[%clk 0:00:38.7]} 49... Ke7
{[%clk 0:00:10.6]} 50. Rxg6 {[%clk 0:00:39.8]} 50... Rxa3 {[%clk 0:00:11.8]} 51.
f5 {[%clk 0:00:40.9]} 51... Rc3 {[%clk 0:00:12]} 52. Rg7+ {[%clk 0:00:41.8]}
52... Kd8 {[%clk 0:00:11.3]} 53. f6 {[%clk 0:00:42.9]} 53... Rxc4 {[%clk
0:00:12.8]} 54. Rg8+ {[%clk 0:00:43.9]} 54... Kd7 {[%clk 0:00:13.9]} 55. f7
{[%clk 0:00:45.4]} 1-0

[Event "*** Titled Tuesday Blitz"]
[Site "Chess.com"]
[Date "2019.06.04"]
[Round "7"]
[White "Mostii"]
[Black "tteshan"]
[Result "1-0"]
[WhiteElo "2452"]
[BlackElo "2238"]
[TimeControl "180+2"]
[EndTime "14:36:10 PDT"]
[Termination "Mostii won by resignation"]

1. d4 {[%clk 0:03:01.9]} 1... d5 {[%clk 0:02:59.1]} 2. Nf3 {[%clk 0:03:02.7]}
2... Nf6 {[%clk 0:02:57.7]} 3. g3 {[%clk 0:03:03.7]} 3... e6 {[%clk 0:02:56.6]}
4. Bg2 {[%clk 0:03:05]} 4... c5 {[%clk 0:02:57.8]} 5. O-O {[%clk 0:03:06.8]}
5... Nc6 {[%clk 0:02:56.9]} 6. b3 {[%clk 0:03:07.9]} 6... Bd6 {[%clk 0:02:56.7]}
7. Bb2 {[%clk 0:03:07.9]} 7... O-O {[%clk 0:02:57]} 8. dxc5 {[%clk 0:03:06.4]}
8... Bxc5 {[%clk 0:02:58.1]} 9. e3 {[%clk 0:03:07.6]} 9... b6 {[%clk 0:02:54]}
10. Nbd2 {[%clk 0:03:08.4]} 10... Bb7 {[%clk 0:02:55]} 11. c4 {[%clk 0:03:09.6]}
11... dxc4 {[%clk 0:02:52.8]} 12. Nxc4 {[%clk 0:03:11.5]} 12... Qe7 {[%clk
0:02:52.3]} 13. Qe2 {[%clk 0:03:11.9]} 13... Rfd8 {[%clk 0:02:53.2]} 14. Rfd1
{[%clk 0:03:12.7]} 14... h6 {[%clk 0:02:53.1]} 15. Nfe5 {[%clk 0:03:13.6]} 15...
Nxe5 {[%clk 0:02:47.4]} 16. Bxe5 {[%clk 0:03:15.5]} 16... Bxg2 {[%clk
0:02:46.8]} 17. Kxg2 {[%clk 0:03:17.4]} 17... Qb7+ {[%clk 0:02:43.8]} 18. Qf3
{[%clk 0:03:18]} 18... Qxf3+ {[%clk 0:02:43.8]} 19. Kxf3 {[%clk 0:03:19.9]}
19... Be7 {[%clk 0:02:41.3]} 20. Rac1 {[%clk 0:03:07.4]} 20... Rac8 {[%clk
0:02:36.8]} 21. Bxf6 {[%clk 0:02:56]} 21... Bxf6 {[%clk 0:02:37.2]} 22. e4
{[%clk 0:02:57.4]} 22... b5 {[%clk 0:02:29.8]} 23. Ne3 {[%clk 0:02:36.8]} 23...
Kf8 {[%clk 0:02:20.4]} 24. Rxd8+ {[%clk 0:02:30]} 24... Rxd8 {[%clk 0:02:20.3]}
25. Rc7 {[%clk 0:02:31.5]} 25... Bd4 {[%clk 0:02:18.8]} 26. Rb7 {[%clk
0:02:25.8]} 26... Bb6 {[%clk 0:02:18.7]} 27. a4 {[%clk 0:02:23.2]} 27... bxa4
{[%clk 0:02:16.8]} 28. bxa4 {[%clk 0:02:25.1]} 28... Rd4 {[%clk 0:02:17]} 29. a5
{[%clk 0:02:26.1]} 29... Bxa5 {[%clk 0:02:12.1]} 30. Rxa7 {[%clk 0:02:27.4]}
30... Bb4 {[%clk 0:02:09]} 31. Rb7 {[%clk 0:02:19.6]} 31... Bc3 {[%clk
0:02:01.4]} 32. h4 {[%clk 0:02:18.5]} 32... g5 {[%clk 0:01:58.7]} 33. hxg5
{[%clk 0:02:19]} 33... hxg5 {[%clk 0:02:00.6]} 34. Rc7 {[%clk 0:02:18.7]} 34...
Ba5 {[%clk 0:01:59.3]} 35. Rc5 {[%clk 0:02:15.7]} 35... Bd2 {[%clk 0:01:54.7]}
36. Rxg5 {[%clk 0:02:14]} 36... Bxe3 {[%clk 0:01:50.4]} 37. Kxe3 {[%clk
0:02:15.9]} 37... Rd1 {[%clk 0:01:50.2]} 38. Ra5 {[%clk 0:02:16]} 38... Ke7
{[%clk 0:01:50.9]} 39. Kf4 {[%clk 0:02:14.8]} 39... Kf6 {[%clk 0:01:50.2]} 40.
f3 {[%clk 0:02:14]} 40... Rd3 {[%clk 0:01:48.9]} 41. g4 {[%clk 0:02:14.3]} 41...
Kg6 {[%clk 0:01:47.6]} 42. Rg5+ {[%clk 0:02:14.5]} 42... Kf6 {[%clk 0:01:47.8]}
43. Rb5 {[%clk 0:02:14.9]} 43... Kg6 {[%clk 0:01:48.4]} 44. Rh5 {[%clk
0:02:15.9]} 44... Ra3 {[%clk 0:01:38.5]} 45. Rh1 {[%clk 0:02:16.7]} 45... Rb3
{[%clk 0:01:37.1]} 46. Rh2 {[%clk 0:02:16.9]} 46... Ra3 {[%clk 0:01:38]} 47. g5
{[%clk 0:02:17.1]} 47... e5+ {[%clk 0:01:35.7]} 48. Kg4 {[%clk 0:02:15.2]} 48...
Rb3 {[%clk 0:01:30.7]} 49. Rh6+ {[%clk 0:02:16]} 49... Kg7 {[%clk 0:01:31.8]}
50. Rf6 {[%clk 0:02:17.9]} 50... Rb1 {[%clk 0:01:26.6]} 51. Rf5 {[%clk
0:02:13.8]} 51... Rg1+ {[%clk 0:01:26.8]} 52. Kh3 {[%clk 0:02:14.6]} 52... Kg6
{[%clk 0:01:00.7]} 53. Rxe5 {[%clk 0:02:13.1]} 53... Rxg5 {[%clk 0:01:02]} 54.
Rxg5+ {[%clk 0:02:12.6]} 54... Kxg5 {[%clk 0:01:03.9]} 55. Kg3 {[%clk
0:02:13.6]} 55... Kf6 {[%clk 0:00:52.7]} 56. f4 {[%clk 0:02:14.5]} 56... Ke6
{[%clk 0:00:49.8]} 57. Kf3 {[%clk 0:02:15.7]} 57... Kf6 {[%clk 0:00:50.7]} 58.
Ke3 {[%clk 0:02:17]} 58... Ke6 {[%clk 0:00:52]} 59. Kd4 {[%clk 0:02:18.4]} 59...
Kf6 {[%clk 0:00:44.2]} 60. Kd5 {[%clk 0:02:19]} 60... Ke7 {[%clk 0:00:42.1]} 61.
Ke5 {[%clk 0:02:19.5]} 61... f6+ {[%clk 0:00:40.3]} 62. Kf5 {[%clk 0:02:17.4]}
62... Kf7 {[%clk 0:00:41.7]} 63. Kg4 {[%clk 0:02:17.2]} 63... Ke6 {[%clk
0:00:40]} 64. Kh5 {[%clk 0:02:17.2]} 64... Kf7 {[%clk 0:00:10.9]} 65. Kh6 {[%clk
0:01:21.3]} 1-0

[Event "*** Titled Tuesday Blitz"]
[Site "Chess.com"]
[Date "2019.06.04"]
[Round "7"]
[White "Rhinos1"]
[Black "RU_B9"]
[Result "0-1"]
[WhiteElo "2057"]
[BlackElo "2065"]
[TimeControl "180+2"]
[EndTime "14:36:14 PDT"]
[Termination "RU_B9 won by checkmate"]

1. e4 {[%clk 0:02:59.1]} 1... e6 {[%clk 0:02:58.6]} 2. d3 {[%clk 0:02:58.9]}
2... d5 {[%clk 0:02:59.9]} 3. Nd2 {[%clk 0:02:59]} 3... c5 {[%clk 0:03:01.3]} 4.
Ngf3 {[%clk 0:02:59.3]} 4... Nc6 {[%clk 0:03:02.1]} 5. g3 {[%clk 0:02:59.9]}
5... Bd6 {[%clk 0:03:03]} 6. Bg2 {[%clk 0:03:01.3]} 6... Nge7 {[%clk 0:03:04.1]}
7. O-O {[%clk 0:03:02.6]} 7... O-O {[%clk 0:03:05]} 8. c3 {[%clk 0:03:03.9]}
8... f6 {[%clk 0:02:48.1]} 9. Re1 {[%clk 0:03:00.9]} 9... Re8 {[%clk 0:02:42]}
10. a4 {[%clk 0:03:00.3]} 10... a5 {[%clk 0:02:26.9]} 11. Nf1 {[%clk 0:02:58]}
11... Ng6 {[%clk 0:02:26]} 12. Qb3 {[%clk 0:02:47.9]} 12... Bc7 {[%clk 0:01:53]}
13. exd5 {[%clk 0:02:41.5]} 13... Nce5 {[%clk 0:01:38.2]} 14. Nxe5 {[%clk
0:02:31.5]} 14... Nxe5 {[%clk 0:01:35.3]} 15. dxe6 {[%clk 0:02:00.8]} 15... Bxe6
{[%clk 0:01:35.1]} 16. Qxb7 {[%clk 0:01:59.5]} 16... Nxd3 {[%clk 0:01:02.3]} 17.
Rxe6 {[%clk 0:01:52.7]} 17... Rxe6 {[%clk 0:01:01.6]} 18. Qxa8 {[%clk
0:01:52.7]} 18... Qxa8 {[%clk 0:00:59.1]} 19. Bxa8 {[%clk 0:01:54.6]} 19... Re1
{[%clk 0:00:59.5]} 20. Bd5+ {[%clk 0:01:39]} 20... Kf8 {[%clk 0:00:58.9]} 21. b4
{[%clk 0:01:26.5]} 21... Nxc1 {[%clk 0:00:39.4]} 22. bxa5 {[%clk 0:01:07.5]}
22... Ne2+ {[%clk 0:00:39.6]} 23. Kg2 {[%clk 0:01:01]} 23... Rxa1 {[%clk
0:00:41]} 24. Bc6 {[%clk 0:00:51.7]} 24... Bxa5 {[%clk 0:00:39.3]} 25. Nd2
{[%clk 0:00:47]} 25... Bxc3 {[%clk 0:00:34.1]} 26. Nb3 {[%clk 0:00:46.8]} 26...
Rg1+ {[%clk 0:00:26.6]} 27. Kh3 {[%clk 0:00:47.6]} 27... Nd4 {[%clk 0:00:21.4]}
28. a5 {[%clk 0:00:40.1]} 28... Nxb3 {[%clk 0:00:15.7]} 29. a6 {[%clk
0:00:38.9]} 29... Ra1 {[%clk 0:00:16.9]} 30. a7 {[%clk 0:00:35]} 30... Rxa7
{[%clk 0:00:17.6]} 31. Bd5 {[%clk 0:00:34.5]} 31... Nd4 {[%clk 0:00:17.9]} 32.
f4 {[%clk 0:00:34.2]} 32... Ke7 {[%clk 0:00:15]} 33. Be4 {[%clk 0:00:34.7]}
33... g6 {[%clk 0:00:15.1]} 34. Bd5 {[%clk 0:00:34.4]} 34... Kd6 {[%clk
0:00:15.2]} 35. Bg8 {[%clk 0:00:35]} 35... f5 {[%clk 0:00:12.5]} 36. Kh4 {[%clk
0:00:33.1]} 36... Nf3+ {[%clk 0:00:12.8]} 37. Kh3 {[%clk 0:00:33.6]} 37... Kc6
{[%clk 0:00:10.3]} 38. Kg2 {[%clk 0:00:32.9]} 38... Nd4 {[%clk 0:00:09]} 39. Kh3
{[%clk 0:00:31.8]} 39... Kb5 {[%clk 0:00:10.4]} 40. Kh4 {[%clk 0:00:32.2]} 40...
Nf3+ {[%clk 0:00:10.7]} 41. Kh3 {[%clk 0:00:31.7]} 41... c4 {[%clk 0:00:12.1]}
42. Kg2 {[%clk 0:00:31.8]} 42... Nd4 {[%clk 0:00:10.8]} 43. Kh3 {[%clk
0:00:29.3]} 43... Re7 {[%clk 0:00:12.1]} 44. Kh4 {[%clk 0:00:30.4]} 44... Nf3+
{[%clk 0:00:13.4]} 45. Kh3 {[%clk 0:00:31.6]} 45... Bd2 {[%clk 0:00:13.2]} 46.
Kg2 {[%clk 0:00:32.8]} 46... Nd4 {[%clk 0:00:13.8]} 47. h4 {[%clk 0:00:32.2]}
47... c3 {[%clk 0:00:14.6]} 48. h5 {[%clk 0:00:32.9]} 48... c2 {[%clk
0:00:14.9]} 49. Bxh7 {[%clk 0:00:31.2]} 49... Rxh7 {[%clk 0:00:12.9]} 50. hxg6
{[%clk 0:00:32.2]} 50... Rg7 {[%clk 0:00:14]} 51. Kh3 {[%clk 0:00:32.7]} 51...
Rxg6 {[%clk 0:00:14.4]} 52. Kh4 {[%clk 0:00:34.6]} 52... Nf3+ {[%clk 0:00:14.2]}
53. Kh5 {[%clk 0:00:34.9]} 53... Rxg3 {[%clk 0:00:13.8]} 54. Kh6 {[%clk
0:00:34.9]} 54... c1=Q {[%clk 0:00:14.1]} 55. Kh7 {[%clk 0:00:34.9]} 55... Qh1#
{[%clk 0:00:15.5]} 0-1